Cogmind - Beta 12 @@@ ROGUE MODE // 2023.07.20 @ 21:43:32 Player: Senator Honkstrong Result: Destroyed by 8R-AWN with 8R-AWN's Boregun Performance ------------- Evolutions (0) 0 Regions Visited (3) 600 Robots Destroyed (43) 215 Value Destroyed (519) 519 Prototype IDs (30) 600 Alien Tech Used (0) 0 Bonus (2) 2 TOTAL SCORE: 1936 Bonus ------- Aligned with FarCom 300 Friendly Fire -298 Cogmind --------- Core Integrity 0/250 Matter 270/300 Energy 87/100 System Corruption 0% Temperature Cool (0) Movement Walking (120) Location -10/Exiles Parts ------- > --- POWER (1) -------- (None) > --- PROPULSION (2) --- Advanced Myomer Leg > --- UTILITY (2) ------ (None) > --- WEAPON (2) ------- Axe Longsword +1 > --- INVENTORY (5) ---- Disposable Heat Sink Improved Medium Laser Guided Plasma Cannon Light Assault Rifle Grenade Launcher Peak State ------------ > --- POWER ------------ Light Deuterium Engine > --- PROPULSION ------- Light Treads Light Treads > --- UTILITY ---------- Large Storage Unit Improved Light Armor Plating > --- WEAPON ----------- Improved Medium Laser Longsword +1 > --- INVENTORY -------- Light Deuterium Engine Light Fission Core Disposable Heat Sink Trap Scanner Light Armor Plating Improved Light Armor Plating Hacking Suite Improved Medium Laser Guided Plasma Cannon XL Autogun Array Grenade Launcher Axe [Rating: 27] Favorites ----------- Power Ion Engine Engine Ion Engine Propulsion Light Treads Treads Light Treads Leg Advanced Myomer Leg Utility Large Storage Unit Device Sensor Array Storage Large Storage Unit Processor Targeting Computer Protection Improved Light Armor Plating Weapon Assault Rifle Energy Gun Improved Medium Laser Ballistic Gun Assault Rifle Launcher Grenade Launcher Special Weapon Mining Laser Slashing Weapon Axe Special Melee Weapon Improved Datajack Build | -11 -10 -10 -10 ------- Run | Jun Mat Min Exi Slots Evolved . | . . . . Power . | . . . . Propulsion . | . . . . Utility . | . . . . Weapon . | . . . . Parts Attached 38 | 9 9 8 12 Power 4 | 1 . 2 1 Engine 4 | 1 . 2 1 Core . | . . . . Reactor . | . . . . Propulsion 7 | 2 3 1 1 Treads 6 | 2 3 1 . Leg 1 | . . . 1 Wheel . | . . . . Hover . | . . . . Flight . | . . . . Utility 8 | 2 4 . 2 Device 2 | 1 1 . . Storage 2 | 1 1 . . Processor 2 | . 2 . . Hackware . | . . . . Protection 2 | . . . 2 Artifact . | . . . . Weapon 19 | 4 2 5 8 Energy Gun 4 | . 1 1 2 Energy Cannon . | . . . . Ballistic Gun 7 | 3 1 1 2 Ballistic Cannon . | . . . . Launcher 2 | . . 1 1 Special Weapon 1 | 1 . . . Impact Weapon . | . . . . Slashing Weapon 4 | . . 1 3 Piercing Weapon . | . . . . Special Melee Weapon 1 | . . 1 . Unidentified Prototypes 2 | . 1 . 1 Parts Lost 9 | . . . 9 Power 2 | . . . 2 Propulsion 2 | . . . 2 Utility 2 | . . . 2 Weapon 3 | . . . 3 Highest Loss Streak 9 | . . . 9 To Critical Strikes 2 | . . . 2 Average Slot Usage (%) 99 | . 99 99 97 Engine 13 | . 14 14 13 Treads 27 | . 27 28 26 Device 2 | . 6 . . Storage 13 | . 14 14 13 Processor 8 | . 7 14 5 Protection 2 | . . . 8 Energy Gun 10 | . 5 13 13 Ballistic Gun 11 | . 22 5 3 Slashing Weapon 5 | . . 6 11 Naked Turns . | . . . . Heaviest Build 34 | 15 31 31 34 Greatest Support 40 | 40 40 40 40 Greatest Overweight (x) 11 | 1 10 . 11 Average Overweight (x) . | . . . . Largest Inventory Capacity 15 | 8 15 15 15 Average Capacity 13 | 7 11 15 14 Most Carried 15 | 3 15 15 15 Average Carried 11 | 1 9 14 12 Final Capacity 15 | 8 15 15 5 Final Carried 15 | 2 15 15 5 Class Distribution -------------------- 100% | Mutant Dominant Class ---------------- Mutant | -10/Materials Mutant | -10/Mines Mutant | -10/Exiles Resources | -11 -10 -10 -10 ----------- Run | Jun Mat Min Exi Matter Collected 1299 | 260 695 191 153 Remotely . | . . . . Salvage Created 1194 | 312 677 184 21 Parts 102 | 36 47 19 . Haulers Intercepted 2 | . 2 . . Recyclers Shooed 2 | . 2 . . Parts Field Recycled . | . . . . Retrieved Matter . | . . . . Parts Self-Destructed . | . . . . Prevented . | . . . . Kills | -11 -10 -10 -10 ------- Run | Jun Mat Min Exi Combat Hostiles Destroyed 21 | . 9 6 6 Guns 17 | . 9 6 2 AOE 4 | . . . 4 Classes Destroyed 10 | 3 6 . 1 Worker 7 | 4 3 . . Builder 1 | . 1 . . Tunneler 9 | 8 . 1 . Hauler 2 | . 2 . . Recycler 4 | 1 3 . . Operator 2 | . 2 . . Watcher 3 | . 3 . . Swarmer 10 | . 6 4 . Grunt 5 | . 3 2 . Assembled 7 | . . . 7 Best Kill Streak 6 | 3 4 4 6 Combat Bots Only 6 | . 3 4 6 Max Kills in Single Turn 3 | 1 1 2 3 Gunslinging 1 | . . 1 . Exploded 3 | . . . 3 Melee . | . . . . Uniques/NPCs Destroyed . | . . . . Combat | -11 -10 -10 -10 -------- Run | Jun Mat Min Exi Damage Taken 1539 | . 352 173 1014 Core 261 | . 34 31 196 Absorbed by Shields . | . . . . Core Remaining (%) 100 | 100 . . . Volleys Fired 129 | 34 72 13 10 Largest 2 | 2 2 2 2 Hottest 120 | 120 76 76 112 Shots Fired 250 | 66 142 24 18 Gun 245 | 64 142 24 15 Cannon . | . . . . Launcher 3 | . . . 3 Special 2 | 2 . . . Kinetic 203 | 64 122 11 6 Thermal 44 | 2 20 13 9 Explosive 3 | . . . 3 Electromagnetic . | . . . . Robot Hit Streak 15 | 5 9 12 15 Robot Miss Streak 3 | 3 3 2 3 Penetration Max . | . . . . Secondary Targets 3 | . . 2 1 Max Gunslinging Chain 1 | . . 1 1 Shots Hit Robots 145 | 33 75 20 17 Core Hits 68 | 14 33 7 14 Critical Kills 1 | . . 1 . Critical Parts Destroyed 2 | . 2 . . Critical Strikes 9 | . 3 5 1 Burn 5 | . 1 4 . Destroy 3 | . 2 1 . Sever 1 | . . . 1 Melee Attacks 13 | . . 4 9 Impact . | . . . . Slashing 11 | . . 2 9 Piercing . | . . . . Sneak Attacks 2 | . . 2 . Combat Hostiles . | . . . . Follow-up Attacks 1 | . . . 1 Damage Inflicted 2669 | 430 1029 351 859 Guns 1791 | 430 1014 245 102 Cannons . | . . . . Explosions 413 | . . . 413 Melee 450 | . . 106 344 Ramming 15 | . 15 . . Kinetic 1381 | 430 810 105 36 Thermal 410 | . 204 140 66 Explosive 413 | . . . 413 Electromagnetic . | . . . . Impact . | . . . . Slashing 450 | . . 106 344 Piercing . | . . . . Highest Corruption . | . . . . Average Corruption . | . . . . Corruption Purged . | . . . . Corruption Blocked . | . . . . Overload Shots . | . . . . Overflow Damage 48 | . . 33 15 Projectiles . | . . . . Explosions 15 | . . . 15 Melee 33 | . . 33 . Knockbacks 1 | . 1 . . Impact 1 | . 1 . . Kinetic . | . . . . Secondary . | . . . . Self-Inflicted Damage 80 | . 45 . 35 Shots 3 | . 2 . 1 Rammed 2 | . 2 . . Targets Rammed 3 | . 3 . . Kicked . | . . . . Crushed 1 | . 1 . . Highest Temperature 131 | 40 90 105 131 Average Temperature 36 | 21 25 38 73 Received Heat Transfer 78 | . 78 . . Siege Activations . | . . . . Robots Corrupted . | . . . . Combat Hostiles . | . . . . Parts Fried . | . . . . Impact Corruptions . | . . . . Robots Melted . | . . . . Combat Hostiles . | . . . . Parts Melted . | . . . . Heat Transferred 1258 | . 518 592 148 Parts Sabotaged . | . . . . Parts Stolen . | . . . . Parts Stripped . | . . . . Power Chain Reactions . | . . . . Missiles Intercepted . | . . . . Alert | -11 -10 -10 -10 ------- Run | Jun Mat Min Exi Peak Influence 302 | 65 302 146 . Initial 42 | . 42 1 . Average 68 | 29 98 37 . Maximum Alert Level 1 | . 1 . . Low Security (%) 94 | 100 89 100 . Level 1 5 | . 10 . . Level 2 . | . . . . Level 3 . | . . . . Level 4 . | . . . . Level 5 . | . . . . High Security . | . . . . Max Security . | . . . . Squads Dispatched 2 | . 1 1 . Investigation 1 | . . 1 . Extermination . | . . . . Reinforcement 1 | . 1 . . Assault . | . . . . Garrison . | . . . . Intercept . | . . . . Searches Triggered . | . . . . Construction Impeded . | . . . . Haulers Reinforced . | . . . . Active Scanning Responses . | . . . . Cargo Convoy Interrupts . | . . . . Stealth | -11 -10 -10 -10 --------- Run | Jun Mat Min Exi Distress Signals 1 | . 1 . . Communications Jammed . | . . . . Distress Signals . | . . . . Times Spotted 34 | . 21 6 7 Peak Tracking Total 8 | . 3 5 8 Tactical Retreats 1 | . 1 . . Traps | -11 -10 -10 -10 ------- Run | Jun Mat Min Exi Traps Triggered 3 | . 3 . . Indirectly . | . . . . Trap Hack Attempts . | . . . . Triggered . | . . . . Disarmed . | . . . . Reprogrammed . | . . . . Reused . | . . . . Traps Extracted . | . . . . Installed . | . . . . Triggered . | . . . . Machines | -11 -10 -10 -10 ---------- Run | Jun Mat Min Exi Machines Disabled 6 | . 3 1 2 Max in Single Turn 3 | . 3 1 2 Machines Repaired . | . . . . Machines Sabotaged . | . . . . Overloaded Fab Kills . | . . . . Hacking | -11 -10 -10 -10 --------- Run | Jun Mat Min Exi Machines Accessed 9 | . 7 1 1 Terminals 6 | . 6 . . Fabricators . | . . . . Repair Stations . | . . . . Recycling Units 1 | . 1 . . Scanalyzers . | . . . . Garrison Access . | . . . . Total Hacks 21 | . 19 1 1 Successful 12 | . 10 1 1 Failed 8 | . 8 . . Catastrophic 1 | . 1 . . Database Lockouts 1 | . 1 . . Manual 11 | . 10 . 1 Terminals 18 | . 18 . . Fabricators . | . . . . Repair Stations . | . . . . Recycling Units 1 | . 1 . . Scanalyzers . | . . . . Garrison Access . | . . . . Terminal Hacks 8 | . 6 1 1 Robot Analysis 3 | . 3 . . Prototype ID Bank 2 | . 2 . . Open Door 1 | . . 1 . Locate Traps 1 | . 1 . . EX-Prototype ID Bank 1 | . . . 1 Fabricator Hacks . | . . . . Repair Station Hacks . | . . . . Recycling Unit Hacks 1 | . 1 . . Retrieve Components 1 | . 1 . . Scanalyzer . | . . . . Garrison Access Hacks . | . . . . Unauthorized Hacks 3 | . 3 . . Terminals 3 | . 3 . . Botnet 3 | . 3 . . Fabricators . | . . . . Repair Stations . | . . . . Recycling Units . | . . . . Scanalyzers . | . . . . Garrison Access . | . . . . Data Cores Recovered 1 | . 1 . . Used . | . . . . Hacking Detections 6 | . 6 . . Full Trace Events 2 | . 2 . . Feedback Events . | . . . . Feedback Blocked . | . . . . Robot Schematics Acquired . | . . . . Robots Built . | . . . . Authchips . | . . . . Time . | . . . . Total Robot Build Rating . | . . . . Part Schematics Acquired . | . . . . Parts Built . | . . . . Authchips . | . . . . Time . | . . . . Total Part Build Rating . | . . . . Parts Repaired . | . . . . Time . | . . . . Parts Recycled . | . . . . Recycled Matter . | . . . . Retrieved Matter . | . . . . Retrieved Components 9 | . 9 . . Parts Scanalyzed . | . . . . Part Schematics Acquired . | . . . . Parts Damaged . | . . . . Bothacking | -11 -10 -10 -10 ------------ Run | Jun Mat Min Exi Used RIF Installer . | . . . . Robots Hacked 1 | . . 1 . Non-combat . | . . . . Combat 1 | . . 1 . Robot Hacks Applied 1 | . . 1 . parse_system 1 | . . 1 . Relay Couplers Released . | . . . . Fabnet Peak Effective % . | . . . . Robots Rewired . | . . . . Allies Hacked . | . . . . Hacks Repelled . | . . . . Allies | -11 -10 -10 -10 -------- Run | Jun Mat Min Exi Total Allies 1 | . . 1 . Largest Group 1 | . . 1 . Highest-Rated Group 31 | . . 31 . Highest-Rated Ally 31 | . . 31 . Total Orders . | . . . . Ally Attacks . | . . . . Total Damage . | . . . . Kills . | . . . . Allies Corrupted . | . . . . Allies Melted . | . . . . Intel | -11 -10 -10 -10 ------- Run | Jun Mat Min Exi Robot Analysis Total 3 | . 3 . . Derelict Logs Recovered 2 | . . 2 . Drone Launches . | . . . . Drone Recoveries . | . . . . Exploration | -11 -10 -10 -10 ------------- Run | Jun Mat Min Exi Turns Passed 4861 | 325 1823 1405 1308 Spaces Moved 2564 | 135 900 781 748 Core 19 | 11 2 . 6 Treads 2544 | 124 898 781 741 Legs 1 | . . . 1 Wheels . | . . . . Hover . | . . . . Flight . | . . . . Fastest Speed 50 | 50 160 160 120 Average Speed 160 | 151 161 160 161 Slowest Speed 600 | 160 550 160 600 Overloaded Moves . | . . . . Propulsion Burnouts . | . . . . Robots Hopped . | . . . . Cave-ins Triggered . | . . . . Exploration Rate (%) 66 | 6 99 98 61 Regions Visited 3 Branch Regions 2 Pre-discovered Areas 1 | . . 1 . Known Exits Taken . | . . . . Unknown Exits Taken 3 | 1 1 1 . Scrap Searched 1 | . . 1 . Spaces Dug 1 | 1 . . . Terrain Destroyed 44 | 1 32 . 11 Melee . | . . . . Projectile 1 | 1 . . . AOE 43 | . 32 . 11 Terrain Rammed . | . . . . Walls Destroyed . | . . . . Machines Disabled . | . . . . Actions | -11 -10 -10 -10 --------- Run | Jun Mat Min Exi Total 3052 | 182 1128 912 830 Wait 220 | . 125 87 8 Move 2561 | 134 899 780 748 Hop . | . . . . Pick Up 45 | 3 14 8 20 Fast Attach 21 | 7 8 4 2 Attach 7 | 1 . . 6 Detach 2 | 1 . . 1 Swap 10 | 1 1 4 4 Drop 42 | 1 6 12 23 Fire 129 | 34 72 13 10 Melee 12 | . . 4 8 Ram . | . . . . Kick . | . . . . Crush 3 | . 3 . . Escape Stasis . | . . . . Rewire . | . . . . Trap . | . . . . Miscellaneous . | . . . . Route ------- -11/Junkyard -10/Materials (discovered 5 exits: [*Mat x3] / *Min x2) -10/Mines (discovered 3 exits: [*Mat x2] / *Exi) -10/Exiles (discovered 1 exit: [*Min]) History --------- Turn | Location | Event 7 | -11/Junkyard | Discovered new exit (range 16) 326 | -11/Junkyard | Entered Materials 341 | -10/Materials | Build established: Mutant 375 | -10/Materials | Discovered new exit (range 7) 846 | -10/Materials | Discovered new exit (range 9) 1129 | -10/Materials | Discovered new exit (range 5) 1325 | -10/Materials | Discovered new exit (range 3) 1458 | -10/Materials | Discovered new exit (range 9) 1752 | -10/Materials | Central database locked down 2149 | -10/Materials | Entered Mines 2495 | -10/Mines | Learned location of Zion (-6) 2506 | -10/Mines | Deemed a non-threat by the Exiles lab entrance 2508 | -10/Mines | Discovered new exit (range 5) 2612 | -10/Mines | Assembled infested the area 2637 | -10/Mines | YI-UF0 nonchalantly dropped a Grenade Launcher on the ground 2774 | -10/Mines | Met 8R-AWN 2792 | -10/Mines | Met a Derelict shopkeep closing up shop 2960 | -10/Mines | Learned Materials machine intel 2994 | -10/Mines | Discovered new exit (range 16) 3008 | -10/Mines | Received a Mining Laser from a helpful Derelict 3151 | -10/Mines | Discovered new exit (range 2) 3554 | -10/Mines | Entered Exiles 3593 | -10/Exiles | Welcomed by 8R-AWN 3622 | -10/Exiles | Met EX-HEX 3682 | -10/Exiles | Met EX-DEC 3952 | -10/Exiles | Met EX-BIN 3970 | -10/Exiles | Aligned with FarCom system 3972 | -10/Exiles | Given EX-Vault access code 4012 | -10/Exiles | Opened EX-Vault 4021 | -10/Exiles | Found XL Autogun Array 4026 | -10/Exiles | Found Longsword +1 4031 | -10/Exiles | Found Gui. Plasma Cannon 4064 | -10/Exiles | Warned to stay clear of 0b10 Research branches 4390 | -10/Exiles | Learned about 8R-AWN's background 4617 | -10/Exiles | Discovered new exit (range 14) 4788 | -10/Exiles | Attacked by the Exiles 4822 | -10/Exiles | Core integrity fell below 50% 4840 | -10/Exiles | Core integrity fell below 20% 4862 | -10/Exiles | Destroyed by 8R-AWN with 8R-AWN's Boregun Last Messages --------------- 04826_ Machine disabled. 04826_ HV Slug penetrates Machine. 04828_ HV Slug penetrates Wall. 04828_ Penetrated by HV Slug. 04833_ Critical hit (Destroy). 04833_ Penetrated by HV Slug. 04835_ Critical hit (Destroy). 04837_ Dropped Lrg. Storage Unit. 04839_ Penetrated by HV Slug. 04839_ Imp. Light Armor Plating destroyed. 04842_ Penetrated by HV Slug. 04842_ Axe follow-up attack on 8R-AWN. 04844_ 8R-AWN Prototype Leg severed. 04848_ Penetrated by HV Slug. 04848_ Lgt. Deuterium Engine destroyed. 04848_ Acquired Prototype Leg. 04848_ Identified Adv. Myomer Leg. 04854_ Penetrated by HV Slug. 04859_ Destroyed Prototype Protection. 04862_ Penetrated by HV Slug. Map ----- +----------------------------------------------------+ | """#?????????????????????????????????????????? | | """#?????????????????????????????????????????? | | """#?????????????????????????????????????????? | | """"?????????????????????????????????????????? | | """#?????????????????????????????????????????? | | "X" """"?????????????????????????????????????????? | | """ #?????????????????????????????????????????? | | """""""#?????????????????????????????????????????? | | ########?????????????????????????????????????????? | | ?????????????????????????????????????????????????? | | ?????????????????????????????????????????????????# | | ?????????????????????????????????????????????????# | | ???###########???????????????????????????????????# | | ####"""""""""##??????????????????????????????????# | | " """ """"##????????????????????????????????## | | "" " #???????????????????????????????## | | " """#???????????????????????????????# | | " "#???????????#####???????????????# | | " "##?????????##" #??????????????## | | ""###???????#" #?????????????## | | " #??????##" ##????????????# | | ###??### ###????????### | | " ##?# ########## | | "" ! ### #""""## | | """ ! ## | | " [![ @g ## | | "" ! #### | | ""#?#"""""#### | | #"""##?#######??#### | | % ######??????????????##### | | % % ##???????????????????????### | | " ##??????????????????????????### | | "#?????????????????????????????# | | " " ""#"% ##?????????????????????????????? | | #""" """## ##??????????????????????????????? | | ###""""#?## #???????????????????????????????? | | ??####????#######????????????????????????????????? | | ?????????????????????????????????????????????????? | | ?????????????????????????????????????????????????? | | ?????????????????????????????????????????????????? | | ?????????????????????????????????????????????????? | | ?????????????????????????????????????????????????? | | ?????????????????????????????????????????????????? | | ?????????????????????????????????????????????????? | | ?????????????????????????????????????????????????? | | ?????????????????????????????????????????????????? | | ?????????????????????????????????????????????????? | | ?????????????????????????????????????????????????? | | ?????????????????????????????????????????????????? | | ?????????????????????????????????????????????????? | +----------------------------------------------------+ Best States ------------- Heat Dissipation 25 Energy Generation 14 Energy Capacity 250 Matter Stores 300 Matter Capacity 300 Sight Range 16 Robot Scan Range 14 Terrain Scan Range 16 Terrain Scan Density 10 Armor Coverage 150 Evasion (%) 40 Targeting Accuracy 5 Recoil Reduction 2 Item Schematics ----------------- None Robot Schematics ------------------ None Fabricated ------------ Nothing Alien Tech Used ----------------- None Achievements -------------- None Challenges ------------ None Game ------ Seed CryofiberCooledMinigun Manual? 0 Play Time 00:30:14 Cumulative 48.3 hours Start 2023.07.20 @ 21:15:18 End 2023.07.20 @ 21:43:32 Sessions 1 Manual Loads 0 Difficulty Rogue Special Mode None Game No. 38 Rogue 38 Adventurer 0 Explorer 0 Win Type - Total 0 Types 0/0/0/0/0/0/0/0/0 Lore% 30 Gallery% 37 Achievement% 32 Wizard Run 0 Options --------- ASCII 0 Keyboard 0 Movement Mouse Keybinds 0 Fullscreen 1 Font 18/SmallcapsGlow Map View 76x50 Tactical HUD 1 Map Filters NONE Filters NONE Steam X RUN: 79de3b94-02b7-40a7-a172-90c6b9bb59c5